bitfinex-derivatives/quotes_SOLF0:USTF0_20250609
["timestamp","ask_amount","ask_price","bid_price","bid_amount"]
[1749479166181,0.04613631,154.32,154.29,0.04537067]
[1749479166480,6.4773,154.3,154.29,0.04537067]
[1749479167780,11.69383709,154.31,154.29,0.04537067]
[1749479168383,5.21683709,154.31,154.29,0.04537067]
[1749479168585,5.21683709,154.31,154.29,6.52307067]
[1749479169082,5.21659244,154.31,154.29,6.52307067]
[1749479169283,11.69369244,154.31,154.29,0.04537067]
[1749479169580,5.21659244,154.3,154.29,0.04537067]
[1749479169991,5.21659244,154.3,154.25,34.1]
[1749479170281,5.21659244,154.29,154.25,34.1]
[1749479170475,6.4784,154.28,154.25,40.5794]
[1749479170982,6.4787,154.27,154.25,34.1411183]
[1749479171380,0.04200716,154.28,154.25,34.1411183]
[1749479171784,6.52020716,154.28,154.25,40.6203183]
[1749479171988,0.04200716,154.28,154.25,34.1411183]
[1749479172486,5.2566288,154.28,154.25,34.1411183]
[1749479172681,0.04200716,154.28,154.25,34.1411183]
[1749479173084,5.21306491,154.27,154.25,0.0411183]
[1749479173383,11.69206491,154.26,154.25,0.0411183]
[1749479173585,6.479,154.26,154.25,0.0411183]
[1749479173786,11.69206491,154.26,154.25,0.0411183]
[1749479174285,11.08215699,154.26,154.19,34.1]
[1749479174588,8.36001367,154.27,154.19,34.1]
[1749479174589,5.86909208,154.24,154.19,34.1]
[1749479174779,5.21306491,154.23,154.19,34.1]
[1749479174983,11.69396491,154.22,154.19,34.1]
[1749479175185,5.21045686,154.21,154.19,34.14406906]
[1749479175783,5.21045686,154.21,154.19,40.62596906]
[1749479176084,5.21045686,154.21,154.19,0.04406906]
[1749479176289,5.21045686,154.2,154.19,0.04406906]
[1749479176583,5.21045686,154.21,154.19,0.04406906]
[1749479177083,11.69185686,154.21,154.19,0.04406906]
[1749479177880,5.21045686,154.21,154.19,0.04406906]
[1749479178990,6.4812,154.21,154.19,0.04406906]
[1749479181091,6.52473023,154.22,154.19,0.04406906]
[1749479182690,6.4811,154.21,154.19,0.04406906]
[1749479183393,6.52483023,154.22,154.19,0.04406906]
[1749479183585,0.04393023,154.22,154.19,0.04406906]
[1749479184082,6.52483023,154.22,154.19,0.04406906]
[1749479185699,6.52483023,154.22,154.19,6.52596906]
[1749479186191,0.04393023,154.22,154.19,6.52596906]
[1749479186392,0.04393023,154.22,154.19,0.04406906]
[1749479186998,0.04393023,154.22,154.2,6.4813]
[1749479188801,0.04393023,154.22,154.19,6.52586906]
[1749479189293,0.04393023,154.22,154.19,0.04406906]
[1749479190195,0.04393023,154.22,154.21,6.4811]
[1749479192799,0.04393023,154.22,154.2,6.4814]
[1749479193100,0.04393023,154.22,154.19,5.91316114]
[1749479194899,0.04393023,154.22,154.21,6.4811]
[1749479195098,0.04393023,154.22,154.19,5.91316114]
[1749479195303,0.04393023,154.22,154.19,0.04406906]
[1749479195497,6.4813,154.21,154.19,0.04406906]
[1749479195699,0.04393023,154.22,154.19,0.04406906]
[1749479196300,6.4811,154.21,154.19,0.04406906]
[1749479196603,0.04393023,154.22,154.2,5.86909208]
[1749479196804,0.04393023,154.22,154.21,6.4811]
[1749479201807,0.04393023,154.22,154.2,6.4813]
[1749479202008,0.04393023,154.22,154.19,0.04406906]
[1749479202806,6.4814,154.21,154.19,0.04406906]
[1749479203205,0.04393023,154.22,154.19,0.04406906]
[1749479203406,6.4815,154.2,154.19,0.04406906]
[1749479204008,6.4812,154.21,154.19,0.04406906]
[1749479204208,0.04393023,154.22,154.19,0.04406906]
[1749479204410,6.52483023,154.22,154.19,0.04406906]
[1749479204708,0.04393023,154.22,154.19,0.04406906]
[1749479205310,6.52493023,154.22,154.19,6.52596906]
[1749479205706,0.04393023,154.22,154.19,0.04406906]
[1749479205907,6.4812,154.21,154.19,0.04406906]
[1749479206811,6.4812,154.21,154.19,6.52596906]
[1749479207212,6.52483023,154.22,154.19,6.52596906]
[1749479208609,6.4812,154.21,154.19,0.04406906]
[1749479209507,6.4815,154.2,154.19,0.04406906]
[1749479210707,12.35059208,154.2,154.19,0.04406906]
[1749479210910,17.54435987,154.2,154.19,0.04406906]
[1749479215126,11.67526779,154.2,154.19,0.04406906]
[1749479221731,17.72298146,154.2,154.19,0.04406906]
[1749479221931,11.67526779,154.2,154.19,0.04406906]
[1749479222133,17.72298146,154.2,154.19,0.04406906]
[1749479222332,11.67526779,154.2,154.19,0.04406906]
[1749479223430,11.68546843,154.2,154.19,0.04406906]
[1749479224133,17.74343253,154.2,154.19,0.04406906]
[1749479224329,6.4829,154.17,154.14,34.08]
[1749479224534,6.4829,154.17,154.14,40.5638]
[1749479224733,5.20354559,154.16,154.14,40.5638]
[1749479224937,6.4832,154.17,154.14,40.5638]
[1749479225132,5.20354559,154.16,154.14,34.08]
[1749479225334,5.91585971,154.17,154.13,0.04705255]
[1749479225536,5.20359053,154.16,154.13,0.04705255]
[1749479225736,5.20359053,154.15,154.13,0.04705255]
[1749479225930,11.68769053,154.14,154.13,0.04705255]
[1749479226330,6.4841,154.14,154.13,0.04705255]
[1749479226733,11.68769053,154.14,154.13,0.04705255]
[1749479229132,6.4841,154.14,154.13,0.04705255]
[1749479231036,11.67322954,154.14,154.13,0.04705255]
[1749479231231,6.4841,154.14,154.13,0.04705255]
[1749479231631,11.67322954,154.14,154.13,0.04705255]
[1749479231940,6.4854,154.11,154.08,34.06]
[1749479232337,6.4851,154.12,154.08,34.06]
[1749479232540,5.18912954,154.14,154.08,34.06]
[1749479232939,6.4851,154.12,154.09,0.04785816]
[1749479233341,6.4851,154.12,154.09,6.53395816]
[1749479234439,6.53145007,154.13,154.1,6.4857]
[1749479234639,0.04675007,154.13,154.09,0.04785816]
[1749479235443,0.04675007,154.13,154.1,6.4855]
[1749479235645,6.53145007,154.13,154.1,6.4855]
[1749479236146,0.04675007,154.13,154.11,6.4852]
[1749479236349,0.04675007,154.13,154.09,0.04785816]
[1749479236841,0.04675007,154.13,154.11,6.4852]
[1749479237045,0.04675007,154.13,154.09,0.04785816]
[1749479237241,0.04675007,154.13,154.09,5.91695024]
[1749479238050,0.04675007,154.13,154.12,6.4849]
[1749479238943,0.04675007,154.13,154.11,6.4851]
[1749479239144,0.04675007,154.13,154.09,5.91695024]
[1749479239440,0.04675007,154.13,154.12,6.4849]
[1749479243851,5.17849257,154.18,154.12,34.06]
[1749479244051,5.17849257,154.19,154.13,5.86909208]
[1749479244250,6.4826,154.18,154.13,5.86909208]
[1749479244454,5.17849257,154.19,154.13,5.86909208]
[1749479244655,5.17849257,154.2,154.15,5.86909208]
[1749479244960,0.04743252,154.18,154.17,6.4828]
[1749479248556,0.04743252,154.18,154.16,40.543]
[1749479249061,0.04743252,154.18,154.16,34.06]
[1749479249762,6.52993252,154.18,154.16,40.5432]
[1749479250260,0.04743252,154.18,154.16,40.5432]
[1749479251760,6.52983252,154.18,154.16,34.06]
[1749479251961,0.04743252,154.18,154.16,34.06]
[1749479252162,5.19178681,154.17,154.14,0.04708388]
[1749479252361,6.4836,154.15,154.14,0.04708388]
[1749479252558,11.67538681,154.15,154.14,0.04708388]
[1749479255068,5.19178681,154.15,154.14,0.04708388]
[1749479255969,11.67538681,154.15,154.14,0.04708388]
[1749479256163,5.19178681,154.15,154.14,0.04708388]
[1749479256369,0.04743252,154.18,154.14,0.04708388]
[1749479256565,5.1951429,154.17,154.14,0.04708388]
[1749479256769,5.1951429,154.16,154.14,0.04708388]
[1749479256966,5.1951429,154.17,154.14,0.04708388]
[1749479257259,0.04743252,154.18,154.14,0.04708388]
[1749479257260,5.1951429,154.16,154.14,0.04708388]
[1749479257466,5.1951429,154.17,154.14,0.04708388]
[1749479257666,0.04743252,154.18,154.15,6.4836]
[1749479257667,5.1951429,154.16,154.15,6.4836]
[1749479257866,5.1951429,154.17,154.15,6.4836]
[1749479258066,5.1951429,154.16,154.15,6.4836]
[1749479258367,11.6779429,154.17,154.14,6.53098388]
[1749479258567,5.1951429,154.16,154.14,6.53098388]
[1749479262572,5.1951429,154.16,154.15,6.4836]
[1749479262868,5.1951429,154.17,154.15,6.4836]
[1749479263068,5.1951429,154.16,154.15,6.4836]
[1749479263267,6.52993252,154.18,154.15,6.4836]
[1749479263268,5.1951429,154.17,154.15,6.4836]
[1749479263469,5.1951429,154.16,154.15,6.4836]
[1749479263668,5.1951429,154.17,154.15,6.4836]
[1749479263970,5.1951429,154.16,154.15,6.4836]
[1749479264170,5.1951429,154.17,154.15,6.4836]
[1749479264372,5.1951429,154.16,154.15,6.4836]
[1749479265368,5.1951429,154.17,154.15,6.4836]
[1749479265567,5.1951429,154.16,154.15,6.4836]
[1749479265768,5.1951429,154.17,154.15,6.4836]
[1749479265968,5.1951429,154.16,154.15,6.4836]
[1749479266169,5.1951429,154.17,154.15,6.4836]
[1749479266367,5.1951429,154.16,154.15,6.4836]
[1749479267571,5.1951429,154.17,154.15,6.4836]
[1749479267770,5.1951429,154.16,154.15,6.4836]
[1749479267972,5.1951429,154.17,154.15,6.4836]
[1749479268172,5.1951429,154.16,154.14,6.53098388]
[1749479268968,5.1951429,154.16,154.15,6.4836]
[1749479269371,5.1951429,154.17,154.14,0.04708388]
[1749479269969,5.1951429,154.17,154.15,6.4836]
[1749479270164,5.1951429,154.17,154.14,0.04708388]
[1749479270366,0.04743252,154.18,154.14,0.04708388]
[1749479270770,0.04743252,154.18,154.15,5.86909208]
[1749479270974,0.04743252,154.18,154.17,6.4828]
[1749479271677,0.04743252,154.18,154.17,12.35189208]
[1749479275081,0.04743252,154.18,154.17,46.37189208]
[1749479284987,6.04694764,154.23,154.22,6.4807]
[1749479285185,6.04694764,154.28,154.22,39.86909208]
[1749479285391,6.04694764,154.28,154.24,5.86909208]
[1749479285586,8.14664764,154.29,154.27,6.4786]
[1749479285894,8.14664764,154.29,154.24,5.86909208]
[1749479285895,6.04694764,154.32,154.28,5.86909208]
[1749479286196,6.04694764,154.32,154.28,5.91852329]
[1749479286197,0.04807514,154.32,154.28,5.91852329]
[1749479286897,0.04807514,154.32,154.28,12.39662329]
[1749479288399,6.52457514,154.32,154.28,12.39662329]
[1749479288596,0.04807514,154.32,154.28,5.91852329]
[1749479288895,0.04807514,154.32,154.28,0.04943121]
[1749479289096,6.4778,154.29,154.28,0.04943121]
[1749479294305,5.86909208,154.29,154.22,33.94]
[1749479294601,4.5044,154.28,154.22,33.94]
[1749479294795,6.4797,154.25,154.22,40.4205]
[1749479294999,4.5044,154.28,154.22,33.94]
[1749479295202,6.6123,154.28,154.22,33.94]
[1749479295404,6.4802,154.24,154.23,0.04864278]
[1749479296007,6.4814,154.21,154.19,33.94]
[1749479296305,5.86909208,154.25,154.17,39.80909208]
[1749479296502,6.4814,154.21,154.18,6.4823]
[1749479296999,6.52523826,154.21,154.18,6.53177731]
[1749479297199,0.04383826,154.21,154.19,5.86909208]
[1749479298107,0.04383826,154.21,154.19,12.35079208]
[1749479299504,0.04383826,154.21,154.19,6.4817]
[1749479300007,0.04383826,154.21,154.18,12.40076939]
[1749479300707,6.52503826,154.21,154.18,6.53167731]
[1749479301008,0.04383826,154.21,154.18,0.04947731]
[1749479301203,6.4816,154.2,154.18,0.04947731]
[1749479303316,6.482,154.19,154.18,0.04947731]
[1749479306920,5.16377825,154.2,154.14,33.94]
[1749479307215,11.07670859,154.21,154.14,33.94]
[1749479307517,6.483,154.17,154.14,40.4238]
[1749479307714,5.86909208,154.21,154.14,33.94]
[1749479307912,0.04871033,154.19,154.16,0.02174833]
[1749479308816,6.4826,154.18,154.16,0.02174833]
[1749479314718,6.4828,154.17,154.16,0.02174833]
[1749479315613,5.86909208,154.17,154.08,33.96]
[1749479315819,5.86909208,154.14,154.08,33.96]
[1749479316016,6.4859,154.1,154.08,33.96]
[1749479318019,0.04513581,154.11,154.08,33.96]
[1749479318616,6.4858,154.1,154.08,33.96]
[1749479318823,0.04513581,154.11,154.08,33.96]
[1749479319422,6.4862,154.09,154.08,33.96]
[1749479319618,0.04513581,154.11,154.05,40.3876]
[1749479320013,0.04513581,154.11,154.05,33.9]
[1749479320615,6.4872,154.07,154.05,33.9]
[1749479320921,0.04513581,154.11,154.05,33.9]
[1749479321727,6.4873,154.07,154.05,33.9]
[1749479322714,6.4874,154.06,154.05,33.9]
[1749479323719,6.5296839,154.07,154.05,33.9]
[1749479325023,6.5296839,154.07,154.05,40.3878]
[1749479325228,6.5296839,154.07,154.05,33.9]
[1749479325423,0.0425839,154.07,154.05,33.9]
[1749479325730,0.0425839,154.07,154.06,6.4874]
[1749479326430,2.278,154.14,154.09,6.486]
[1749479326629,6.4847,154.13,154.08,5.86909208]
[1749479327125,6.4842,154.14,154.08,5.86909208]
[1749479327335,6.4842,154.14,154.09,33.92]
[1749479327629,0.0422385,154.13,154.1,6.5279839]
[1749479329242,0.0422385,154.13,154.1,5.91167598]
[1749479329936,0.0422385,154.13,154.12,6.4849]
[1749479330732,36.1129,154.18,154.12,5.86909208]
[1749479330933,2.1929,154.18,154.12,5.86909208]
[1749479331428,2.1929,154.18,154.15,6.4834]
[1749479331829,8.7238875,154.18,154.15,6.52593578]
[1749479332921,6.4829,154.17,154.15,0.04253578]
[1749479333932,8.7239875,154.18,154.15,6.52613578]
[1749479334628,6.4829,154.17,154.15,0.04253578]
[1749479336833,6.4829,154.17,154.15,6.52613578]
[1749479337630,0.0484875,154.18,154.16,6.483]
[1749479337836,0.0484875,154.18,154.15,0.04253578]
[1749479338038,6.4829,154.17,154.15,0.04253578]
[1749479340029,0.0484875,154.18,154.16,6.483]
[1749479340234,0.0484875,154.18,154.15,0.04253578]
[1749479341338,6.483,154.17,154.15,0.04253578]
[1749479341926,6.483,154.17,154.15,6.52613578]
[1749479343236,0.0484875,154.18,154.15,6.52613578]
[1749479343629,6.4831,154.17,154.15,6.52613578]
[1749479346937,6.4831,154.17,154.15,0.04253578]
[1749479347139,6.4832,154.16,154.15,0.04253578]
[1749479347440,11.11571401,154.16,154.07,407.44]
[1749479347634,5.86909208,154.14,154.1,6.4857]
[1749479347837,6.485,154.12,154.1,6.4857]
[1749479348639,6.485,154.12,154.09,6.52828662]
[1749479349038,6.485,154.12,154.09,0.04228662]
[1749479349543,0.04609158,154.13,154.09,0.04228662]
[1749479349744,0.04609158,154.13,154.1,5.86909208]
[1749479349944,0.04609158,154.13,154.11,33.86]
[1749479350144,0.04609158,154.13,154.12,6.4849]
[1749479350347,0.04609158,154.13,154.12,12.35399208]
[1749479352648,41.99907671,154.2,154.12,5.86909208]
[1749479352850,5.23989044,154.19,154.14,5.86909208]
[1749479353044,2.3085,154.21,154.15,33.86]
[1749479353045,5.23989044,154.2,154.15,33.86]
[1749479353257,11.72159044,154.2,154.17,6.4826]
[1749479353858,11.76868137,154.2,154.17,6.52696713]
[1749479354055,5.23989044,154.19,154.17,6.52696713]
[1749479354757,6.482,154.19,154.17,6.52696713]
[1749479354958,6.482,154.19,154.17,0.04436713]
[1749479355658,6.4824,154.18,154.17,0.04436713]
[1749479356451,6.4838,154.15,154.11,5.86909208]
[1749479356656,5.23874314,154.17,154.13,6.4843]
[1749479356858,11.10783522,154.18,154.11,33.86]
[1749479357054,6.4836,154.16,154.11,33.86]
[1749479357557,5.23874314,154.17,154.11,33.86]
[1749479357558,0.04269802,154.15,154.12,0.04222922]
[1749479358059,0.04269802,154.15,154.14,6.4841]
[1749479358458,0.04269802,154.15,154.13,6.4843]
[1749479361257,0.04269802,154.15,154.13,5.86909208]
[1749479361757,0.04269802,154.15,154.14,6.4841]
[1749479363862,0.04269802,154.15,154.12,0.04222922]
[1749479363863,6.52649802,154.15,154.12,0.04222922]
[1749479364561,6.52649802,154.15,154.13,6.4844]
[1749479364762,0.04269802,154.15,154.13,6.4844]
[1749479364959,0.04269802,154.15,154.12,0.04222922]
[1749479365160,0.04269802,154.15,154.13,6.4845]
[1749479365360,5.29517273,154.15,154.13,6.4845]
[1749479365560,5.29631997,154.15,154.13,6.4845]
[1749479366064,0.04269802,154.15,154.13,6.4845]
[1749479366756,5.29807414,154.15,154.13,6.4845]
[1749479367664,5.29807414,154.15,154.14,6.4841]
[1749479367867,0.04269802,154.15,154.14,6.4841]
[1749479368662,5.29529448,154.15,154.14,6.4841]
[1749479369061,5.29529448,154.15,154.13,6.4844]
[1749479369759,0.04269802,154.15,154.13,6.4844]
[1749479370261,6.52639802,154.15,154.12,6.52702922]
[1749479370467,5.25452004,154.14,154.12,6.52702922]
[1749479370768,6.52639802,154.15,154.12,6.52702922]
[1749479370966,5.25714921,154.14,154.12,6.52702922]
[1749479371167,6.52639802,154.15,154.12,6.52702922]
[1749479371465,5.25725382,154.14,154.12,6.52702922]
[1749479371668,5.2584838,154.13,154.12,0.04222922]
[1749479371868,11.12757588,154.13,154.08,33.86]
[1749479372064,11.7436838,154.12,154.09,6.486]
[1749479372266,5.2584838,154.11,154.08,33.86]
[1749479372465,6.4852,154.12,154.08,33.86]
[1749479372665,5.25669037,154.11,154.08,33.86]
[1749479372866,0.04317037,154.11,154.09,6.4858]
[1749479373865,0.04317037,154.11,154.08,33.86]
[1749479374071,5.25731479,154.1,154.05,33.86]
[1749479374369,5.25731479,154.09,154.06,6.4871]
[1749479374570,5.25731479,154.08,154.05,33.86]
[1749479374771,0.04317037,154.11,154.05,33.86]
[1749479374971,5.25571769,154.1,154.08,6.4864]
[1749479375274,5.25571769,154.09,154.08,6.4864]
[1749479375463,11.74151769,154.1,154.08,6.4864]
[1749479375773,6.4858,154.1,154.08,6.4864]
[1749479376972,11.72074557,154.1,154.07,6.4869]
[1749479379474,6.4858,154.1,154.07,6.4869]
[1749479379975,11.71112778,154.1,154.07,6.4869]
[1749479380172,6.4858,154.1,154.07,6.4869]
[1749479382172,6.52857037,154.11,154.08,6.4866]
[1749479382479,0.04317037,154.11,154.08,5.86909208]
[1749479383278,0.04317037,154.11,154.1,6.4858]
[1749479386574,0.04317037,154.11,154.09,6.4861]
[1749479386782,0.04317037,154.11,154.06,5.86909208]
[1749479387177,0.04317037,154.11,154.07,6.4867]
[1749479387574,5.26965473,154.11,154.07,6.4867]
[1749479387775,6.486,154.1,154.07,6.4867]
[1749479388781,0.04317037,154.11,154.05,33.86]
[1749479388986,5.26954018,154.11,154.05,33.86]
[1749479389172,7.39634018,154.11,154.05,33.86]
[1749479389372,6.4866,154.09,154.05,33.86]
[1749479389979,6.4867,154.08,154.05,40.3477]
[1749479390381,5.22636981,154.1,154.05,33.86]
[1749479390586,6.4864,154.09,154.06,6.4874]
[1749479391980,6.487,154.08,154.05,33.86]
[1749479392186,11.09546189,154.1,154.05,33.86]
[1749479392387,13.26906189,154.1,154.05,33.86]
[1749479392587,6.4868,154.08,154.05,40.3478]
[1749479394180,5.22636981,154.09,154.02,33.82]
[1749479394380,0.04473827,154.07,154.02,33.82]
[1749479394687,6.4877,154.06,154.03,6.4885]
[1749479394985,0.04473827,154.07,154.02,33.82]
[1749479395377,0.04473827,154.07,154.04,6.488]
[1749479396386,6.53193827,154.07,154.04,6.488]
[1749479396587,6.53193827,154.07,154.05,6.4878]
[1749479398293,6.53193827,154.07,154.04,6.4881]
[1749479398492,6.53193827,154.07,154.02,33.82]
[1749479398692,6.53193827,154.07,154.04,6.4879]
[1749479399594,6.53193827,154.07,154.05,6.4878]
[1749479399794,6.53193827,154.07,154.02,33.82]
[1749479400288,6.53193827,154.07,154.04,6.488]
[1749479400488,0.04473827,154.07,154.04,5.86909208]
[1749479400694,0.04473827,154.07,154.06,12.35649208]
[1749479401601,0.04473827,154.07,154.06,6.4874]
[1749479403600,0.04473827,154.07,154.05,5.86909208]
[1749479403601,0.04473827,154.07,154.05,12.35669208]
[1749479403792,0.04473827,154.07,154.05,5.86909208]
[1749479404191,0.04473827,154.07,154.06,6.4874]
[1749479404800,299.0,154.06,153.95,11.90210856]
[1749479405005,0.04796749,154.02,153.96,5.87923652]
[1749479405300,10.20203652,154.05,153.96,5.87923652]
[1749479405301,0.04944116,154.01,153.96,6.4913]
[1749479405895,0.04944116,154.01,153.95,5.87938392]
[1749479406100,0.04944116,154.01,153.97,5.87938392]
[1749479406301,0.04944116,154.01,153.98,33.82]
[1749479406796,0.04944116,154.01,153.98,40.3106]
[1749479407297,0.04944116,154.01,153.99,5.87938392]
[1749479407701,0.04944116,154.01,153.98,33.82]
[1749479407901,0.04944116,154.01,154.0,6.49]
[1749479408102,0.04944116,154.01,153.98,39.69938392]
[1749479408805,0.04944116,154.01,153.99,6.4904]
[1749479409304,0.04944116,154.01,153.98,39.69938392]
[1749479409999,0.04944116,154.01,153.98,33.82]
[1749479410205,0.04944116,154.01,154.0,6.49]
[1749479411212,0.04944116,154.01,153.99,6.4903]
[1749479411708,0.04944116,154.01,153.98,33.82]
[1749479412498,0.04944116,154.01,154.0,6.49]
[1749479415308,0.04944116,154.01,153.99,6.4902]
[1749479417118,0.04944116,154.01,154.0,6.49]
[1749479417617,6.4875,154.06,153.99,5.87938392]
[1749479417811,5.1866132,154.07,153.99,5.87938392]
[1749479418016,6.4879,154.05,153.99,5.87938392]
[1749479418210,6.4879,154.05,154.02,6.4888]
[1749479418410,5.1866132,154.07,154.02,33.78]
[1749479418610,6.53198638,154.06,154.03,0.04649567]
[1749479419116,6.53198638,154.06,154.03,6.53519567]
[1749479420018,6.4879,154.05,154.03,0.04649567]
[1749479420818,6.4883,154.04,154.03,0.04649567]
[1749479421718,0.04418638,154.06,154.03,0.04649567]
[1749479422221,6.53188638,154.06,154.03,6.53499567]
[1749479422718,0.04418638,154.06,154.03,6.53499567]
[1749479423315,0.04418638,154.06,154.03,0.04649567]
[1749479423918,0.04418638,154.06,154.04,6.4883]
[1749479425410,0.04418638,154.06,154.05,6.4879]
[1749479426012,0.04418638,154.06,154.04,6.4881]
[1749479427125,0.04418638,154.06,154.05,6.4879]
[1749479427918,0.04418638,154.06,154.04,6.4881]
[1749479428319,0.04418638,154.06,154.03,0.04649567]
[1749479428517,0.04418638,154.06,154.05,6.4879]
[1749479430920,5.19300202,154.1,154.05,5.87938392]
[1749479431125,32.42618396,154.13,154.03,5.87938392]
[1749479431126,11.67920202,154.09,154.03,5.87938392]
[1749479431322,6.4862,154.09,154.03,5.87938392]
[1749479431521,6.4862,154.09,154.06,6.4874]
[1749479431716,11.6816697,154.09,154.06,6.4874]
[1749479432023,6.53099902,154.09,154.06,6.53221526]
[1749479432221,0.04479902,154.09,154.07,6.4869]
[1749479432517,0.04479902,154.09,154.06,0.04481526]
[1749479432725,0.04479902,154.09,154.07,5.87938392]
[1749479432924,0.04479902,154.09,154.08,6.4866]
[1749479433525,5.19913189,154.14,154.07,5.87938392]
[1749479433723,5.19913189,154.13,154.1,5.87938392]
[1749479433920,5.19913189,154.12,154.1,39.65938392]
[1749479434229,5.19913189,154.14,154.11,6.4851]
[1749479434523,5.19913189,154.14,154.11,0.04929567]
[1749479434524,5.19913189,154.13,154.11,0.04929567]
[1749479434724,5.19913189,154.12,154.11,0.04929567]
[1749479435027,6.4849,154.12,154.11,0.04929567]
[1749479435323,11.68403189,154.12,154.11,0.04929567]
[1749479437224,6.4849,154.12,154.11,0.04929567]
[1749479437426,11.68403189,154.12,154.11,0.04929567]
[1749479438726,6.4849,154.12,154.11,0.04929567]
[1749479438921,11.68403189,154.12,154.11,0.04929567]
[1749479439423,5.19913189,154.12,154.07,33.76]
[1749479439727,5.19913189,154.12,154.03,379.63938392]
[1749479439728,13.29141581,154.11,154.04,33.76]
[1749479439927,6.4868,154.08,154.05,6.4876]
[1749479440115,8.09228392,154.11,154.04,39.63938392]
[1749479440116,5.19913189,154.09,154.04,39.63938392]
[1749479440319,0.04484738,154.08,154.07,6.487]
[1749479441326,0.04484738,154.08,154.06,6.4873]
[1749479441526,0.04484738,154.08,154.05,0.04730897]
[1749479442525,0.04484738,154.08,154.07,6.487]
[1749479453532,19.63856894,154.17,154.05,0.04730897]
[1749479453533,14.0,154.15,154.06,5.87938392]
[1749479453738,5.22358638,154.14,154.1,5.87938392]
[1749479453942,5.22358638,154.15,154.12,5.87938392]
[1749479454236,5.22358638,154.16,154.12,39.61938392]
[1749479454432,5.22358638,154.15,154.12,39.61938392]
[1749479454626,5.26531526,154.16,154.12,39.66039596]
[1749479454836,5.22358638,154.15,154.12,39.66039596]
[1749479455227,5.26531526,154.16,154.15,6.4837]
[1749479455431,0.04172888,154.16,154.15,6.4837]
[1749479462048,5.87938392,154.25,154.15,6.4837]
[1749479462049,172.31863528,154.26,154.15,6.48]
[1749479462338,5.22449626,154.25,154.19,5.87938392]
[1749479462545,5.22449626,154.25,154.2,33.72]
[1749479462739,5.22449626,154.26,154.2,33.72]
[1749479462939,0.0430544,154.25,154.21,0.04297295]
[1749479463546,6.4799,154.24,154.21,6.52387295]
[1749479463744,5.26755066,154.25,154.21,0.04297295]
[1749479463945,0.0430544,154.25,154.21,0.04297295]
[1749479464145,0.0430544,154.25,154.21,5.92235687]
[1749479464944,0.0430544,154.25,154.23,6.4803]
[1749479468448,0.0430544,154.25,154.24,6.4799]
[1749479469248,0.0430544,154.25,154.24,40.1999]
[1749479470143,35.9604,154.32,154.24,33.72]
[1749479470144,2.2404,154.32,154.24,33.72]
[1749479470349,6.6042,154.36,154.29,6.4777]
[1749479470553,5.21842026,154.35,154.29,5.87938392]
[1749479470744,5.21842026,154.35,154.31,5.87938392]
[1749479471044,4.4437,154.36,154.33,5.87938392]
[1749479471243,0.04796532,154.36,154.33,5.92372376]
[1749479471441,0.04796532,154.36,154.35,6.475]
[1749479471839,0.04796532,154.36,154.33,5.92372376]
[1749479472255,0.04796532,154.36,154.34,6.4755]
[1749479472550,0.04796532,154.36,154.33,5.92372376]
[1749479472750,0.04796532,154.36,154.35,5.87938392]
[1749479473449,4.4437,154.42,154.38,6.4738]
[1749479473450,8.7431,154.42,154.38,6.4738]
[1749479473651,8.7431,154.42,154.38,46.01318392]
[1749479473955,6.473,154.41,154.38,33.66]
[1749479474147,2.2707,154.42,154.38,33.66]
[1749479474454,0.04786949,154.42,154.39,5.87938392]
[1749479475148,0.04786949,154.42,154.39,12.35268392]
[1749479475348,0.04786949,154.42,154.38,33.70590015]
[1749479475852,6.4736,154.39,154.38,0.04590015]
[1749479476553,5.87938392,154.41,154.38,0.04590015]
[1749479476945,6.4736,154.39,154.38,0.04590015]
[1749479478253,6.4748,154.36,154.35,33.66]
[1749479478450,5.87938392,154.37,154.32,33.66]
[1749479479155,0.04755473,154.36,154.33,0.04665196]
[1749479480056,0.04755473,154.36,154.34,6.4753]
[1749479480455,6.52245473,154.36,154.33,6.52265196]
[1749479480858,0.04755473,154.36,154.33,0.04665196]
[1749479481058,0.04755473,154.36,154.34,6.4756]
[1749479481955,0.04755473,154.36,154.33,0.04665196]
[1749479482353,0.04755473,154.36,154.34,6.4757]
[1749479483158,0.04755473,154.36,154.33,0.04665196]
[1749479483557,0.04755473,154.36,154.34,6.4753]
[1749479484763,0.04755473,154.36,154.35,6.4753]
[1749479485356,2.2989,154.44,154.37,6.4741]